[Event "Early-Titled-Tuesday-Blitz-April-16-2024"]
[Site "Chess.com"]
[Date "2024.04.16"]
[Round "3"]
[White "GMSrinath"]
[Black "HansOnTwitch"]
[Result "0-1"]
[WhiteElo "2809"]
[BlackElo "3146"]
[TimeControl "180+1"]
[EndTime "8:29:31 PDT"]
[Termination "HansOnTwitch won by resignation"]

1. Nf3 {[%clk 0:03:00.6]} 1... d5 {[%clk 0:02:54.1]} 2. e3 {[%clk 0:03:00.6]}
2... Nf6 {[%clk 0:02:53.2]} 3. b3 {[%clk 0:03:00.9]} 3... Bf5 {[%clk 0:02:51.6]}
4. Bb2 {[%clk 0:03:01.3]} 4... h6 {[%clk 0:02:48]} 5. c4 {[%clk 0:03:01.5]} 5...
e6 {[%clk 0:02:47.8]} 6. Nc3 {[%clk 0:03:01.8]} 6... a6 {[%clk 0:02:23.2]} 7.
Be2 {[%clk 0:02:57]} 7... Bd6 {[%clk 0:02:22.6]} 8. O-O {[%clk 0:02:55.7]} 8...
O-O {[%clk 0:02:22.8]} 9. d4 {[%clk 0:02:47.8]} 9... c6 {[%clk 0:02:23]} 10. h3
{[%clk 0:02:46.9]} 10... Nbd7 {[%clk 0:02:22.9]} 11. Bd3 {[%clk 0:02:47.1]}
11... Ne4 {[%clk 0:02:19.8]} 12. Qc2 {[%clk 0:02:40.9]} 12... Ndf6 {[%clk
0:02:19.7]} 13. Nd2 {[%clk 0:02:38.8]} 13... Nxd2 {[%clk 0:01:39.8]} 14. Qxd2
{[%clk 0:02:38.8]} 14... Ne4 {[%clk 0:01:38.9]} 15. Nxe4 {[%clk 0:02:18.1]}
15... dxe4 {[%clk 0:01:38.7]} 16. Bc2 {[%clk 0:02:18.5]} 16... Qh4 {[%clk
0:01:38.6]} 17. f4 {[%clk 0:02:05.4]} 17... exf3 {[%clk 0:01:35]} 18. Rxf3
{[%clk 0:02:01.4]} 18... Bxc2 {[%clk 0:01:26.4]} 19. Qxc2 {[%clk 0:02:02.3]}
19... f5 {[%clk 0:01:26.5]} 20. Bc3 {[%clk 0:01:39.2]} 20... Rae8 {[%clk
0:01:24.8]} 21. Raf1 {[%clk 0:01:37.5]} 21... Bg3 {[%clk 0:01:07.7]} 22. Qd3
{[%clk 0:01:18.2]} 22... Bc7 {[%clk 0:01:02.8]} 23. Be1 {[%clk 0:00:52.5]} 23...
Qg5 {[%clk 0:01:02.3]} 24. e4 {[%clk 0:00:49.3]} 24... Rf7 {[%clk 0:00:56.4]}
25. Bd2 {[%clk 0:00:45.6]} 25... Qg6 {[%clk 0:00:55.6]} 26. e5 {[%clk
0:00:24.4]} 26... c5 {[%clk 0:00:51]} 27. Bc3 {[%clk 0:00:19.2]} 27... cxd4
{[%clk 0:00:50.9]} 28. Bxd4 {[%clk 0:00:20.1]} 28... Rd8 {[%clk 0:00:51.3]} 29.
Qe3 {[%clk 0:00:20.7]} 29... Rfd7 {[%clk 0:00:50.7]} 30. Bb6 {[%clk 0:00:18.4]}
30... Rd3 {[%clk 0:00:48.5]} 31. Qc5 {[%clk 0:00:15.5]} 31... Rxf3 {[%clk
0:00:45.5]} 32. Rxf3 {[%clk 0:00:16.4]} 32... Rd1+ {[%clk 0:00:20.5]} 33. Kh2
{[%clk 0:00:16.6]} 33... Bxb6 {[%clk 0:00:18]} 34. Qxb6 {[%clk 0:00:16.2]} 34...
Rd2 {[%clk 0:00:13.9]} 35. Rg3 {[%clk 0:00:14.3]} 35... Qf7 {[%clk 0:00:14.2]}
36. Qe3 {[%clk 0:00:14.8]} 36... Rxa2 {[%clk 0:00:10.8]} 37. Qxh6 {[%clk
0:00:15.4]} 37... f4 {[%clk 0:00:11]} 38. Rg4 {[%clk 0:00:13.7]} 38... f3 {[%clk
0:00:11.2]} 39. Qg5 {[%clk 0:00:11.9]} 39... f2 {[%clk 0:00:08.3]} 40. Qd8+
{[%clk 0:00:12]} 40... Qf8 {[%clk 0:00:08.9]} 41. Qxf8+ {[%clk 0:00:11.8]} 41...
Kxf8 {[%clk 0:00:09.4]} 42. Rf4+ {[%clk 0:00:12.7]} 42... Ke7 {[%clk 0:00:09.9]}
43. Kg3 {[%clk 0:00:13.6]} 43... Rb2 {[%clk 0:00:10.6]} 44. Rxf2 {[%clk
0:00:11.9]} 44... Rxb3+ {[%clk 0:00:11]} 45. Kh4 {[%clk 0:00:12.6]} 45... Rb4
{[%clk 0:00:10.5]} 46. Rf4 {[%clk 0:00:12.6]} 46... b5 {[%clk 0:00:10.5]} 47.
Kh5 {[%clk 0:00:10.7]} 47... Rxc4 {[%clk 0:00:10.2]} 48. Rf3 {[%clk 0:00:11.4]}
48... b4 {[%clk 0:00:10.4]} 49. Kg6 {[%clk 0:00:11.5]} 49... a5 {[%clk
0:00:10.8]} 50. Kxg7 {[%clk 0:00:10.1]} 50... a4 {[%clk 0:00:11.2]} 51. g4
{[%clk 0:00:09.5]} 51... b3 {[%clk 0:00:11.6]} 52. g5 {[%clk 0:00:10.3]} 52...
b2 {[%clk 0:00:12]} 53. Rf7+ {[%clk 0:00:11.2]} 53... Kd8 {[%clk 0:00:11.9]} 54.
Rb7 {[%clk 0:00:12.1]} 54... a3 {[%clk 0:00:12.4]} 55. g6 {[%clk 0:00:12.6]}
55... Rc7+ {[%clk 0:00:12.8]} 56. Rxc7 {[%clk 0:00:12.4]} 56... Kxc7 {[%clk
0:00:13.7]} 57. Kf6 {[%clk 0:00:13.3]} 57... b1=Q {[%clk 0:00:14.2]} 58. g7
{[%clk 0:00:14.2]} 58... Qf5+ {[%clk 0:00:14.7]} 0-1

[Event "Early-Titled-Tuesday-Blitz-April-16-2024"]
[Site "Chess.com"]
[Date "2024.04.16"]
[Round "3"]
[White "NastyaHn"]
[Black "VacheH009"]
[Result "0-1"]
[WhiteElo "2473"]
[BlackElo "2647"]
[TimeControl "180+1"]
[EndTime "8:29:32 PDT"]
[Termination "VacheH009 won by resignation"]

1. Nc3 {[%clk 0:02:59.1]} 1... f5 {[%clk 0:02:53.9]} 2. e4 {[%clk 0:02:53.2]}
2... fxe4 {[%clk 0:02:51.9]} 3. Nxe4 {[%clk 0:02:52.2]} 3... Nf6 {[%clk
0:02:46.4]} 4. Nxf6+ {[%clk 0:02:48.4]} 4... exf6 {[%clk 0:02:47.3]} 5. Bc4
{[%clk 0:02:45.8]} 5... c6 {[%clk 0:02:32.7]} 6. d4 {[%clk 0:02:37.4]} 6... d5
{[%clk 0:02:32.1]} 7. Bd3 {[%clk 0:02:37.5]} 7... Be6 {[%clk 0:02:16]} 8. Ne2
{[%clk 0:02:24.7]} 8... Bd6 {[%clk 0:02:06.6]} 9. Bf4 {[%clk 0:02:23.4]} 9...
O-O {[%clk 0:02:02.1]} 10. O-O {[%clk 0:02:22.7]} 10... Bf7 {[%clk 0:01:58]} 11.
Bxd6 {[%clk 0:02:19.2]} 11... Qxd6 {[%clk 0:01:58.9]} 12. Ng3 {[%clk 0:02:19.6]}
12... g6 {[%clk 0:01:53.9]} 13. h4 {[%clk 0:02:15.5]} 13... h5 {[%clk
0:01:39.8]} 14. Qf3 {[%clk 0:02:12]} 14... Kg7 {[%clk 0:01:38.3]} 15. Rfe1
{[%clk 0:02:05]} 15... Nd7 {[%clk 0:01:37.4]} 16. Re2 {[%clk 0:02:01.9]} 16...
Rae8 {[%clk 0:01:26]} 17. Rae1 {[%clk 0:02:01]} 17... Rxe2 {[%clk 0:01:26.3]}
18. Rxe2 {[%clk 0:02:01.2]} 18... Re8 {[%clk 0:01:22.1]} 19. Rxe8 {[%clk
0:01:58]} 19... Bxe8 {[%clk 0:01:23]} 20. c3 {[%clk 0:01:56.2]} 20... Nf8 {[%clk
0:01:19.7]} 21. b4 {[%clk 0:01:45.3]} 21... Ne6 {[%clk 0:01:15.9]} 22. Ne2
{[%clk 0:01:38.9]} 22... Bd7 {[%clk 0:01:09.3]} 23. Bc2 {[%clk 0:01:27.7]} 23...
Kf7 {[%clk 0:00:58.7]} 24. Qe3 {[%clk 0:01:12]} 24... Ng7 {[%clk 0:00:38.2]} 25.
Ng3 {[%clk 0:00:58.1]} 25... Be8 {[%clk 0:00:06.7]} 26. Qh6 {[%clk 0:00:36.5]}
26... f5 {[%clk 0:00:01.8]} 27. Bxf5 {[%clk 0:00:23]} 27... Qf6 {[%clk
0:00:01.9]} 28. Bd3 {[%clk 0:00:20.2]} 28... Bd7 {[%clk 0:00:02.1]} 29. Qe3
{[%clk 0:00:14.1]} 29... Ne6 {[%clk 0:00:01.8]} 30. Qh6 {[%clk 0:00:11.1]} 30...
Qg7 {[%clk 0:00:01.8]} 31. Qxg7+ {[%clk 0:00:10.8]} 31... Nxg7 {[%clk
0:00:02.3]} 32. Kf1 {[%clk 0:00:09.5]} 32... Ne8 {[%clk 0:00:02.9]} 33. Ne2
{[%clk 0:00:07.9]} 33... Nd6 {[%clk 0:00:02.5]} 34. g3 {[%clk 0:00:08.3]} 34...
Bf5 {[%clk 0:00:02.5]} 35. Nf4 {[%clk 0:00:08.6]} 35... Bxd3+ {[%clk 0:00:02.7]}
36. Nxd3 {[%clk 0:00:08.6]} 36... Ne4 {[%clk 0:00:03.6]} 37. Ne5+ {[%clk
0:00:09]} 37... Kg7 {[%clk 0:00:03.2]} 38. Ke2 {[%clk 0:00:08.6]} 38... Nxc3+
{[%clk 0:00:02.7]} 39. Kd3 {[%clk 0:00:08]} 39... Nxa2 {[%clk 0:00:03]} 40. Nd7
{[%clk 0:00:05.6]} 40... Nxb4+ {[%clk 0:00:02.2]} 41. Kc3 {[%clk 0:00:06.1]}
41... Na6 {[%clk 0:00:02.9]} 42. f4 {[%clk 0:00:05.8]} 42... Nc7 {[%clk
0:00:03.3]} 43. Nc5 {[%clk 0:00:05.6]} 43... b6 {[%clk 0:00:03.1]} 44. Nd7
{[%clk 0:00:05]} 44... Nb5+ {[%clk 0:00:03.5]} 45. Kd3 {[%clk 0:00:04.7]} 45...
Nd6 {[%clk 0:00:04]} 46. Ne5 {[%clk 0:00:05]} 46... c5 {[%clk 0:00:04.2]} 47.
Ke3 {[%clk 0:00:03.1]} 47... c4 {[%clk 0:00:04.2]} 48. Kd2 {[%clk 0:00:02.5]}
48... Nf5 {[%clk 0:00:04.4]} 49. Kc3 {[%clk 0:00:02.8]} 49... Nxg3 {[%clk
0:00:04.4]} 0-1

[Event "Early-Titled-Tuesday-Blitz-April-16-2024"]
[Site "Chess.com"]
[Date "2024.04.16"]
[Round "3"]
[White "Lily_Schirmbeck"]
[Black "Ariadna_Atreides"]
[Result "1/2-1/2"]
[WhiteElo "1482"]
[BlackElo "2193"]
[TimeControl "180+1"]
[EndTime "8:29:32 PDT"]
[Termination "Game drawn by repetition"]

1. e4 {[%clk 0:02:58.4]} 1... c6 {[%clk 0:02:59.4]} 2. d4 {[%clk 0:02:56.7]}
2... d5 {[%clk 0:02:59.7]} 3. e5 {[%clk 0:02:57]} 3... Bf5 {[%clk 0:02:58.9]} 4.
Nf3 {[%clk 0:02:52.6]} 4... e6 {[%clk 0:02:58]} 5. Nc3 {[%clk 0:02:50.4]} 5...
a6 {[%clk 0:02:55.5]} 6. Bd3 {[%clk 0:02:39.3]} 6... Bxd3 {[%clk 0:02:51.3]} 7.
Qxd3 {[%clk 0:02:40.2]} 7... c5 {[%clk 0:02:51.4]} 8. Ne2 {[%clk 0:02:35.2]}
8... Nc6 {[%clk 0:02:43.7]} 9. c3 {[%clk 0:02:34.4]} 9... Qb6 {[%clk 0:02:29.9]}
10. O-O {[%clk 0:02:31.2]} 10... cxd4 {[%clk 0:02:26.2]} 11. cxd4 {[%clk
0:02:30.1]} 11... Rc8 {[%clk 0:02:18.7]} 12. Bd2 {[%clk 0:02:24]} 12... Bb4
{[%clk 0:02:04.2]} 13. Rac1 {[%clk 0:02:18.7]} 13... Bxd2 {[%clk 0:01:57.8]} 14.
Qxd2 {[%clk 0:02:16.7]} 14... Nge7 {[%clk 0:01:58.4]} 15. Rc3 {[%clk 0:02:02.4]}
15... O-O {[%clk 0:01:52.4]} 16. Rfc1 {[%clk 0:01:52.5]} 16... f6 {[%clk
0:01:18.5]} 17. Qe3 {[%clk 0:01:46.5]} 17... Nf5 {[%clk 0:01:14.8]} 18. Qd3
{[%clk 0:01:15.5]} 18... fxe5 {[%clk 0:00:55.7]} 19. Nxe5 {[%clk 0:01:04]} 19...
Qxb2 {[%clk 0:00:41.6]} 20. Nxc6 {[%clk 0:00:58.5]} 20... Rxc6 {[%clk
0:00:36.7]} 21. Rxc6 {[%clk 0:00:52.9]} 21... bxc6 {[%clk 0:00:37.6]} 22. f3
{[%clk 0:00:46]} 22... Qxa2 {[%clk 0:00:35.3]} 23. Rxc6 {[%clk 0:00:43.1]} 23...
Qa1+ {[%clk 0:00:34.1]} 24. Kf2 {[%clk 0:00:41.9]} 24... Qh1 {[%clk 0:00:16.2]}
25. Rxe6 {[%clk 0:00:20.8]} 25... Qxh2 {[%clk 0:00:15.1]} 26. Re5 {[%clk
0:00:18.5]} 26... Qh4+ {[%clk 0:00:14.5]} 27. Kg1 {[%clk 0:00:18.3]} 27... Ng3
{[%clk 0:00:12.3]} 28. Nxg3 {[%clk 0:00:16.2]} 28... Qxg3 {[%clk 0:00:13.2]} 29.
Rxd5 {[%clk 0:00:15.7]} 29... Rb8 {[%clk 0:00:10.9]} 30. Qd1 {[%clk 0:00:13]}
30... Qg6 {[%clk 0:00:09.4]} 31. Rc5 {[%clk 0:00:10.4]} 31... a5 {[%clk
0:00:08.5]} 32. Qc1 {[%clk 0:00:08.1]} 32... Rb1 {[%clk 0:00:07.1]} 33. Rc8+
{[%clk 0:00:07.7]} 33... Kf7 {[%clk 0:00:06.8]} 34. Rc7+ {[%clk 0:00:07.6]}
34... Ke8 {[%clk 0:00:06]} 35. Rc8+ {[%clk 0:00:07.8]} 35... Kd7 {[%clk
0:00:06.1]} 36. Rc7+ {[%clk 0:00:08.2]} 36... Kd8 {[%clk 0:00:05.7]} 37. Rc8+
{[%clk 0:00:08.4]} 37... Kd7 {[%clk 0:00:05.9]} 38. Rc7+ {[%clk 0:00:08.8]}
38... Kd6 {[%clk 0:00:06]} 39. Rc6+ {[%clk 0:00:09.1]} 39... Kd5 {[%clk
0:00:06.3]} 40. Rc5+ {[%clk 0:00:07]} 40... Kd6 {[%clk 0:00:04.6]} 41. Rc6+
{[%clk 0:00:07.1]} 41... Kd5 {[%clk 0:00:04.8]} 42. Rc5+ {[%clk 0:00:07.4]}
42... Kxd4 {[%clk 0:00:05]} 43. Rc4+ {[%clk 0:00:07.4]} 43... Kd5 {[%clk
0:00:04.9]} 44. Rc5+ {[%clk 0:00:07.7]} 44... Kd6 {[%clk 0:00:04.7]} 45. Rc6+
{[%clk 0:00:08]} 45... Ke7 {[%clk 0:00:04.6]} 46. Rc7+ {[%clk 0:00:08.3]} 46...
Kd6 {[%clk 0:00:04.4]} 47. Rc6+ {[%clk 0:00:08.5]} 47... Ke5 {[%clk 0:00:04.3]}
48. Rc5+ {[%clk 0:00:08.8]} 48... Kd4 {[%clk 0:00:04.1]} 49. Rc4+ {[%clk
0:00:09.1]} 49... Kd5 {[%clk 0:00:03.7]} 50. Rc5+ {[%clk 0:00:09.5]} 50... Ke6
{[%clk 0:00:03.1]} 51. Rc6+ {[%clk 0:00:08.4]} 51... Kd7 {[%clk 0:00:02.8]} 52.
Rc7+ {[%clk 0:00:08.3]} 52... Kd6 {[%clk 0:00:03.2]} 53. Rc6+ {[%clk 0:00:08.7]}
1/2-1/2

[Event "Early-Titled-Tuesday-Blitz-April-16-2024"]
[Site "Chess.com"]
[Date "2024.04.16"]
[Round "3"]
[White "Chesstiger64"]
[Black "ChEsper99"]
[Result "0-1"]
[WhiteElo "2393"]
[BlackElo "2207"]
[TimeControl "180+1"]
[EndTime "8:29:32 PDT"]
[Termination "ChEsper99 won by checkmate"]

1. Nf3 {[%clk 0:03:00.9]} 1... Nf6 {[%clk 0:02:52]} 2. g3 {[%clk 0:03:01]} 2...
b5 {[%clk 0:02:51.5]} 3. Bg2 {[%clk 0:03:01.1]} 3... Bb7 {[%clk 0:02:52]} 4. O-O
{[%clk 0:03:01.7]} 4... c5 {[%clk 0:02:51.9]} 5. d3 {[%clk 0:03:01.9]} 5... e6
{[%clk 0:02:49.1]} 6. e4 {[%clk 0:03:02]} 6... Be7 {[%clk 0:02:46.9]} 7. Nbd2
{[%clk 0:03:00.9]} 7... O-O {[%clk 0:02:46.8]} 8. e5 {[%clk 0:02:59.3]} 8... Nd5
{[%clk 0:02:44.1]} 9. Ne4 {[%clk 0:02:59.2]} 9... f5 {[%clk 0:02:39.9]} 10. exf6
{[%clk 0:02:58.7]} 10... Nxf6 {[%clk 0:02:39.8]} 11. Re1 {[%clk 0:02:58.7]}
11... Nxe4 {[%clk 0:02:27.3]} 12. dxe4 {[%clk 0:02:58.3]} 12... d5 {[%clk
0:02:24.2]} 13. exd5 {[%clk 0:02:58.4]} 13... exd5 {[%clk 0:02:19.8]} 14. Ne5
{[%clk 0:02:58.2]} 14... Bf6 {[%clk 0:02:15.5]} 15. a4 {[%clk 0:02:51.3]} 15...
a6 {[%clk 0:02:09.4]} 16. axb5 {[%clk 0:02:50.8]} 16... axb5 {[%clk 0:02:10.3]}
17. Rxa8 {[%clk 0:02:51.2]} 17... Bxa8 {[%clk 0:02:11.2]} 18. c4 {[%clk
0:02:49.6]} 18... bxc4 {[%clk 0:02:10]} 19. Nxc4 {[%clk 0:02:48.7]} 19... Na6
{[%clk 0:02:00.1]} 20. Ne3 {[%clk 0:02:26.5]} 20... Nb4 {[%clk 0:01:59.2]} 21.
Ng4 {[%clk 0:02:14.4]} 21... d4 {[%clk 0:01:50.1]} 22. Bxa8 {[%clk 0:02:05.5]}
22... Qxa8 {[%clk 0:01:47.5]} 23. Bf4 {[%clk 0:02:01.5]} 23... Qd5 {[%clk
0:01:30.9]} 24. Be5 {[%clk 0:01:49.6]} 24... Bxe5 {[%clk 0:01:24.1]} 25. Rxe5
{[%clk 0:01:47.3]} 25... Qc4 {[%clk 0:00:41.4]} 26. Nh6+ {[%clk 0:01:21.8]}
26... gxh6 {[%clk 0:00:31.4]} 27. Qg4+ {[%clk 0:01:21.6]} 27... Kh8 {[%clk
0:00:31.8]} 28. Re7 {[%clk 0:01:14.6]} 28... Qc1+ {[%clk 0:00:32.1]} 29. Kg2
{[%clk 0:01:14.4]} 29... Qg5 {[%clk 0:00:32.4]} 30. Qd7 {[%clk 0:01:12.5]} 30...
Qd5+ {[%clk 0:00:32.5]} 31. Qxd5 {[%clk 0:01:11.8]} 31... Nxd5 {[%clk
0:00:33.4]} 32. Re5 {[%clk 0:01:12.5]} 32... Rd8 {[%clk 0:00:33]} 33. Kf1 {[%clk
0:01:10.7]} 33... Kg7 {[%clk 0:00:31.3]} 34. Ke2 {[%clk 0:01:10.8]} 34... Kf6
{[%clk 0:00:30.2]} 35. f4 {[%clk 0:01:10.9]} 35... Rd6 {[%clk 0:00:22.6]} 36.
Kd2 {[%clk 0:01:09.7]} 36... Kg6 {[%clk 0:00:10.9]} 37. Kd3 {[%clk 0:01:09.8]}
37... Kf6 {[%clk 0:00:10.7]} 38. Kd2 {[%clk 0:01:10.1]} 38... Kf7 {[%clk
0:00:10.3]} 39. Kd3 {[%clk 0:01:10.3]} 39... Rd8 {[%clk 0:00:10]} 40. Kd2 {[%clk
0:01:10.5]} 40... Rd7 {[%clk 0:00:10.2]} 41. Kd3 {[%clk 0:01:10.5]} 41... Nb4+
{[%clk 0:00:10.8]} 42. Kd2 {[%clk 0:01:09]} 42... Rd5 {[%clk 0:00:10.7]} 43. Re1
{[%clk 0:01:07.7]} 43... c4 {[%clk 0:00:10.8]} 44. Ra1 {[%clk 0:01:07.4]} 44...
Nc6 {[%clk 0:00:10.2]} 45. Ra6 {[%clk 0:01:05.9]} 45... Rd6 {[%clk 0:00:10.1]}
46. Rb6 {[%clk 0:01:04.6]} 46... Ke6 {[%clk 0:00:10.3]} 47. Rb7 {[%clk
0:01:04.2]} 47... Rd7 {[%clk 0:00:09.8]} 48. Rb6 {[%clk 0:01:04]} 48... Kd5
{[%clk 0:00:09.9]} 49. Rb5+ {[%clk 0:01:04.3]} 49... Ke4 {[%clk 0:00:10.1]} 50.
Rh5 {[%clk 0:01:03.7]} 50... Rd6 {[%clk 0:00:09.7]} 51. h3 {[%clk 0:01:02.4]}
51... Nb4 {[%clk 0:00:09.3]} 52. Re5+ {[%clk 0:01:01.4]} 52... Kf3 {[%clk
0:00:09.6]} 53. f5 {[%clk 0:01:01.6]} 53... Nd5 {[%clk 0:00:09.3]} 54. g4 {[%clk
0:01:00]} 54... Nf6 {[%clk 0:00:08.6]} 55. Re7 {[%clk 0:00:57.8]} 55... Ne4+
{[%clk 0:00:08.3]} 56. Kd1 {[%clk 0:00:54.9]} 56... d3 {[%clk 0:00:06.5]} 57.
Rxh7 {[%clk 0:00:51.5]} 57... d2 {[%clk 0:00:06.4]} 58. Re7 {[%clk 0:00:48.9]}
58... Nf2+ {[%clk 0:00:06.5]} 59. Kc2 {[%clk 0:00:49.3]} 59... d1=Q+ {[%clk
0:00:06.4]} 60. Kc3 {[%clk 0:00:49.9]} 60... Qd2+ {[%clk 0:00:06.3]} 61. Kxc4
{[%clk 0:00:48]} 61... Rc6+ {[%clk 0:00:06.6]} 62. Kb5 {[%clk 0:00:47.9]} 62...
Qd5+ {[%clk 0:00:07]} 63. Kb4 {[%clk 0:00:47.4]} 63... Rc4+ {[%clk 0:00:07.2]}
64. Ka3 {[%clk 0:00:47.5]} 64... Qa5+ {[%clk 0:00:07]} 65. Kb3 {[%clk
0:00:47.3]} 65... Qa4# {[%clk 0:00:07.5]} 0-1

[Event "Early-Titled-Tuesday-Blitz-April-16-2024"]
[Site "Chess.com"]
[Date "2024.04.16"]
[Round "3"]
[White "Bilan_Danila"]
[Black "Heinza9"]
[Result "1-0"]
[WhiteElo "2530"]
[BlackElo "2318"]
[TimeControl "180+1"]
[EndTime "8:29:33 PDT"]
[Termination "Bilan_Danila won on time"]

1. d4 {[%clk 0:02:59.9]} 1... f5 {[%clk 0:02:59.6]} 2. Nf3 {[%clk 0:02:58]} 2...
Nf6 {[%clk 0:02:59.4]} 3. g3 {[%clk 0:02:58.7]} 3... g6 {[%clk 0:02:59.6]} 4.
Bg2 {[%clk 0:02:59.4]} 4... Bg7 {[%clk 0:03:00]} 5. O-O {[%clk 0:03:00.3]} 5...
O-O {[%clk 0:03:00.1]} 6. c4 {[%clk 0:03:01]} 6... d6 {[%clk 0:03:00.5]} 7. Nc3
{[%clk 0:02:55.8]} 7... Qe8 {[%clk 0:03:00.6]} 8. d5 {[%clk 0:02:53.8]} 8... a5
{[%clk 0:03:00.8]} 9. Nd4 {[%clk 0:02:51.9]} 9... Na6 {[%clk 0:03:00.9]} 10. b3
{[%clk 0:02:50.5]} 10... Bd7 {[%clk 0:03:01]} 11. Bb2 {[%clk 0:02:50.4]} 11...
c6 {[%clk 0:03:00.8]} 12. e4 {[%clk 0:02:27.3]} 12... fxe4 {[%clk 0:02:59.4]}
13. Qe2 {[%clk 0:02:00.1]} 13... Nc5 {[%clk 0:02:57.9]} 14. Rad1 {[%clk
0:01:48.4]} 14... Bg4 {[%clk 0:02:53.4]} 15. f3 {[%clk 0:01:45.1]} 15... exf3
{[%clk 0:02:53.6]} 16. Bxf3 {[%clk 0:01:45.3]} 16... Bxf3 {[%clk 0:02:39]} 17.
Rxf3 {[%clk 0:01:46.2]} 17... cxd5 {[%clk 0:02:36.9]} 18. cxd5 {[%clk
0:01:30.5]} 18... Qd7 {[%clk 0:02:05.7]} 19. Ba3 {[%clk 0:00:55.6]} 19... Nh5
{[%clk 0:01:31.2]} 20. Bxc5 {[%clk 0:00:47.4]} 20... dxc5 {[%clk 0:01:30.4]} 21.
Ne6 {[%clk 0:00:44.3]} 21... Rxf3 {[%clk 0:01:26.1]} 22. Qxf3 {[%clk 0:00:45.2]}
22... Bxc3 {[%clk 0:00:55.6]} 23. Qxc3 {[%clk 0:00:42.5]} 23... b6 {[%clk
0:00:55.9]} 24. g4 {[%clk 0:00:35.4]} 24... Nf6 {[%clk 0:00:54.3]} 25. g5 {[%clk
0:00:35.8]} 25... Nh5 {[%clk 0:00:53.3]} 26. Qf3 {[%clk 0:00:25]} 26... Qd6
{[%clk 0:00:51.3]} 27. Rf1 {[%clk 0:00:22.9]} 27... Nf4 {[%clk 0:00:14.9]} 28.
Qxf4 {[%clk 0:00:20.6]} 28... Qxf4 {[%clk 0:00:12.4]} 29. Nxf4 {[%clk
0:00:20.1]} 29... Rd8 {[%clk 0:00:11.8]} 30. Kg2 {[%clk 0:00:18.6]} 30... h6
{[%clk 0:00:10.1]} 31. h4 {[%clk 0:00:18.4]} 31... hxg5 {[%clk 0:00:09.8]} 32.
hxg5 {[%clk 0:00:19.1]} 32... Rd6 {[%clk 0:00:09.5]} 33. Kg3 {[%clk 0:00:17.5]}
33... b5 {[%clk 0:00:09.6]} 34. Rc1 {[%clk 0:00:16.8]} 34... c4 {[%clk 0:00:10]}
35. bxc4 {[%clk 0:00:17.3]} 35... bxc4 {[%clk 0:00:10.5]} 36. Rxc4 {[%clk
0:00:15.4]} 36... Rb6 {[%clk 0:00:10.5]} 37. Ra4 {[%clk 0:00:13.5]} 37... Rb5
{[%clk 0:00:09.1]} 38. Kf3 {[%clk 0:00:10]} 38... Kf7 {[%clk 0:00:09.2]} 39. Re4
{[%clk 0:00:06.7]} 39... Rb2 {[%clk 0:00:04.2]} 40. a4 {[%clk 0:00:05.2]} 40...
Rb3+ {[%clk 0:00:04.4]} 41. Kg4 {[%clk 0:00:04.3]} 41... Rb4 {[%clk 0:00:04.1]}
42. Rxb4 {[%clk 0:00:03.4]} 42... axb4 {[%clk 0:00:04.5]} 43. Nd3 {[%clk
0:00:03.1]} 43... b3 {[%clk 0:00:03.9]} 44. a5 {[%clk 0:00:02.8]} 44... Ke8
{[%clk 0:00:04.1]} 45. a6 {[%clk 0:00:03.1]} 45... Kd7 {[%clk 0:00:04.4]} 46. a7
{[%clk 0:00:03.6]} 1-0